bitfinex/quotes_SOLUSD_20240628
["timestamp","ask_amount","ask_price","bid_price","bid_amount"]
[1719549050117,20.0,146.21,146.13,15.8944]
[1719549050118,6.84,146.2,146.13,15.8944]
[1719549050901,38.5093,146.22,146.13,15.8944]
[1719549051120,6.8389,146.23,146.13,15.8944]
[1719549051325,6.8391,146.22,146.13,15.8944]
[1719549051622,6.8386,146.23,146.13,15.8944]
[1719549053506,6.8386,146.23,146.14,0.58865523]
[1719549053830,6.8386,146.23,146.14,1.36805039]
[1719549054005,6.8386,146.23,146.13,15.8944]
[1719549054633,6.8378,146.25,146.14,1.36801718]
[1719549054835,32.92994545,146.29,146.14,1.36801718]
[1719549055139,0.8308008,146.29,146.17,53.5048]
[1719549055356,0.8308008,146.29,146.17,21.8348]
[1719549055855,6.8372,146.26,146.17,21.8348]
[1719549056424,6.8365,146.28,146.17,21.8348]
[1719549056618,6.837,146.27,146.17,21.8348]
[1719549056819,6.8363,146.28,146.17,21.8348]
[1719549057038,6.8367,146.27,146.17,21.8348]
[1719549057229,0.8308008,146.29,146.17,21.8348]
[1719549058923,6.8366,146.27,146.17,21.8348]
[1719549059648,0.8308008,146.29,146.17,21.8348]
[1719549059945,6.8366,146.28,146.17,21.8348]
[1719549060445,7.6666008,146.29,146.17,53.5048]
[1719549060951,6.8362,146.28,146.17,53.5048]
[1719549061314,0.8308008,146.29,146.18,22.4773]
[1719549061519,6.8367,146.27,146.18,22.4773]
[1719549061720,0.8308008,146.29,146.18,22.4773]
[1719549062025,6.8365,146.28,146.18,22.4773]
[1719549062230,0.8308008,146.29,146.18,22.4773]
[1719549062750,6.8366,146.27,146.18,22.4773]
[1719549062936,6.8362,146.28,146.18,22.4773]
[1719549063635,7.6665008,146.29,146.18,22.4773]
[1719549064146,0.8308008,146.29,146.19,16.3787]
[1719549064535,7.6666008,146.29,146.19,16.3787]
[1719549064733,0.8308008,146.29,146.19,16.3787]
[1719549064947,7.6666008,146.29,146.19,16.3787]
[1719549068035,0.8308008,146.29,146.19,16.3787]
[1719549068964,0.8308008,146.29,146.2,6.1103]
[1719549069260,0.8308008,146.29,146.21,15.7554]
[1719549070844,69.32848083,146.36,146.16,31.67]
[1719549070845,3.49578083,146.38,146.23,15.6407]
[1719549071038,12.33713748,146.37,146.23,15.6407]
[1719549071236,12.33713748,146.36,146.23,15.6407]
[1719549071760,6.8351,146.31,146.23,15.6407]
[1719549071967,65.8352,146.35,146.23,15.6407]
[1719549072263,6.8369,146.27,146.23,15.6407]
[1719549072438,31.67,146.32,146.23,15.6407]
[1719549072439,6.8373,146.26,146.23,15.6407]
[1719549072839,17.0879,146.31,146.23,15.6407]
[1719549073177,6.838,146.24,146.22,6.5263]
[1719549073836,6.8387,146.23,146.19,16.4112]
[1719549074441,48.7602,146.29,146.19,16.4112]
[1719549074442,6.8398,146.21,146.19,16.4112]
[1719549074632,17.093,146.26,146.19,16.4112]
[1719549074633,48.763,146.26,146.19,16.4112]
[1719549074852,20.0,146.25,146.19,16.4112]
[1719549075231,6.839,146.22,146.19,16.4112]
[1719549076475,20.0,146.25,146.15,16.0127]
[1719549076476,6.8408,146.19,146.15,16.0127]
[1719549076765,6.8412,146.18,146.15,16.0127]
[1719549077064,31.67,146.23,146.15,16.0127]
[1719549077368,6.8399,146.21,146.15,16.0127]
[1719549077553,20.0,146.2,146.15,16.0127]
[1719549078361,20.0,146.22,146.15,16.0127]
[1719549078538,6.8399,146.2,146.15,16.0127]
[1719549078739,6.8395,146.21,146.15,16.0127]
[1719549078953,20.0,146.2,146.15,16.0127]
[1719549080263,20.0,146.2,146.15,22.8549]
[1719549080833,6.8395,146.21,146.15,22.8549]
[1719549081051,6.8391,146.22,146.16,6.8417]
[1719549081255,3.49578083,146.25,146.15,16.0127]
[1719549081454,6.8389,146.23,146.16,6.8417]
[1719549081740,6.8389,146.23,146.17,6.8412]
[1719549081741,20.0,146.22,146.17,6.8412]
[1719549081941,6.8389,146.23,146.17,6.8412]
[1719549082671,6.8389,146.23,146.16,6.8417]
[1719549082845,6.8392,146.22,146.16,6.8417]
[1719549083047,6.8395,146.21,146.15,16.0127]
[1719549083545,6.8395,146.21,146.15,22.8548]
[1719549083860,3.49578083,146.25,146.15,16.0127]
[1719549084076,23.49578083,146.27,146.2,6.8399]
[1719549084261,20.0,146.27,146.15,16.0127]
[1719549084951,6.8371,146.26,146.2,6.8399]
[1719549085341,20.0,146.27,146.15,16.0127]
[1719549085760,6.8381,146.24,146.17,6.8409]
[1719549085976,6.8381,146.24,146.18,6.8407]
[1719549086471,20.0,146.27,146.19,6.8402]
[1719549086644,6.8372,146.26,146.19,6.8402]
[1719549086845,6.8372,146.26,146.2,6.8397]
[1719549087046,26.8367,146.27,146.2,6.8397]
[1719549087266,26.8367,146.27,146.21,6.8393]
[1719549087442,6.8367,146.27,146.21,22.9514]
[1719549087952,6.8362,146.28,146.22,6.839]
[1719549088352,31.67,146.31,146.22,6.839]
[1719549088353,6.8358,146.29,146.22,6.839]
[1719549088552,6.8363,146.28,146.23,6.5299]
[1719549088959,6.8368,146.27,146.23,6.5299]
[1719549090870,48.7578,146.31,146.23,6.5299]
[1719549091054,32.34129959,146.3,146.23,6.5299]
[1719549091243,12.34129959,146.29,146.23,6.5299]
[1719549091442,20.0,146.28,146.23,6.5299]
[1719549091671,20.0,146.3,146.23,6.5299]
[1719549091859,6.8371,146.26,146.23,6.5299]
[1719549092666,6.8367,146.27,146.23,6.5299]
[1719549093281,6.8362,146.28,146.23,6.5299]
[1719549093453,6.8368,146.27,146.23,6.5299]
[1719549095758,6.8362,146.28,146.23,6.5299]
[1719549095951,6.8357,146.29,146.23,6.5299]
[1719549096266,6.8366,146.27,146.23,6.5299]
[1719549096475,6.8371,146.27,146.23,6.5299]
[1719549097458,6.8363,146.28,146.23,6.5299]
[1719549098549,20.0,146.3,146.23,6.5299]
[1719549098550,6.8367,146.27,146.23,6.5299]
[1719549098983,6.8363,146.28,146.23,6.5299]
[1719549102587,20.0,146.3,146.23,6.5299]
[1719549102789,12.34048682,146.29,146.23,6.5299]
[1719549102991,6.8368,146.27,146.23,6.5299]
[1719549103182,6.8363,146.28,146.23,6.5299]
[1719549105307,6.8357,146.3,146.23,6.5299]
[1719549105607,3.49578083,146.33,146.23,6.5299]
[1719549105811,6.8348,146.31,146.23,6.5299]
[1719549107691,6.8353,146.3,146.23,6.5299]
[1719549108330,6.8357,146.29,146.23,6.5299]
[1719549108600,23.49578083,146.33,146.23,6.5299]
[1719549108905,6.8353,146.3,146.23,6.5299]
[1719549109107,20.0,146.33,146.23,6.5299]
[1719549109413,6.8352,146.31,146.23,6.5299]
[1719549110508,6.8352,146.3,146.23,6.5299]
[1719549110689,6.8348,146.31,146.23,6.5299]
[1719549110891,6.8343,146.32,146.23,6.5299]
[1719549111108,26.8348,146.31,146.23,6.5299]
[1719549111409,6.8343,146.32,146.23,6.5299]
[1719549111595,26.8348,146.31,146.23,6.5299]
[1719549111793,6.8348,146.31,146.23,6.5299]
[1719549112001,6.8353,146.3,146.23,6.5299]
[1719549112182,6.8357,146.29,146.23,6.5299]
[1719549112614,17.0868,146.32,146.23,6.5299]
[1719549112911,32.33933696,146.31,146.23,6.5299]
[1719549113099,6.8367,146.27,146.23,6.5299]
[1719549113893,6.8372,146.26,146.23,6.5299]
[1719549114120,48.7589,146.3,146.21,16.1121]
[1719549114313,35.83750649,146.29,146.21,16.1121]
[1719549114515,6.8379,146.25,146.21,16.1121]
[1719549114816,6.8367,146.27,146.21,16.1121]
[1719549115513,20.0,146.29,146.21,16.1121]
[1719549115692,3.49578083,146.31,146.21,16.1121]
[1719549116018,12.34026369,146.3,146.21,16.1121]
[1719549116216,20.0,146.29,146.21,16.1121]
[1719549116419,37.0871,146.31,146.21,16.1121]
[1719549116610,47.50574619,146.3,146.21,16.1121]
[1719549116816,6.8379,146.25,146.21,16.1121]
[1719549120618,6.8372,146.26,146.21,16.1121]
[1719549120915,20.0,146.25,146.21,16.1121]
[1719549121696,3.49578083,146.29,146.21,16.1121]
[1719549121899,26.8361,146.29,146.22,6.8388]
[1719549122213,6.8362,146.28,146.21,16.1121]
[1719549122734,6.8356,146.3,146.21,16.1121]
[1719549122920,20.0,146.29,146.23,6.8381]
[1719549123124,20.0,146.29,146.24,6.8378]
[1719549123631,6.8358,146.29,146.21,16.1121]
[1719549124209,20.0,146.3,146.21,16.1121]
[1719549124210,6.8367,146.27,146.21,16.1121]
[1719549125049,6.8362,146.28,146.21,16.1121]
[1719549126741,6.8362,146.28,146.22,6.8389]
[1719549126950,6.8358,146.29,146.23,6.242]
[1719549127113,26.8353,146.3,146.23,6.242]
[1719549127820,6.8361,146.29,146.23,6.242]
[1719549128131,6.8363,146.28,146.23,6.242]
[1719549128338,6.8366,146.27,146.23,6.242]
[1719549129739,37.0892,146.3,146.23,6.242]
[1719549130132,6.8376,146.25,146.23,6.242]
[1719549130345,6.8372,146.26,146.23,6.242]
[1719549131241,6.8364,146.28,146.23,6.242]
[1719549131445,6.8366,146.27,146.23,6.242]
[1719549132442,6.8367,146.27,146.23,6.242]
[1719549134627,3.52103989,146.29,146.24,15.0799]
[1719549134925,6.8375,146.26,146.24,15.0799]
[1719549135320,3.52103989,146.29,146.24,15.0799]
[1719549135648,40.61093989,146.29,146.21,16.3702]
[1719549135823,31.67,146.25,146.16,22.5198]
[1719549136023,6.8408,146.19,146.16,22.5198]
[1719549136223,6.8399,146.21,146.16,22.5198]
[1719549136429,20.0,146.2,146.16,22.5198]
[1719549137034,6.8401,146.2,146.16,22.5198]
[1719549137218,20.0,146.24,146.16,22.5198]
[1719549137425,12.34632334,146.23,146.16,22.5198]
[1719549137628,32.34632334,146.22,146.16,22.5198]
[1719549137827,32.34632334,146.21,146.16,22.5198]
[1719549138029,20.0,146.24,146.16,22.5198]
[1719549138227,12.34647673,146.23,146.16,22.5198]
[1719549138427,32.34647673,146.22,146.16,22.5198]
[1719549138646,20.0,146.22,146.16,22.5198]
[1719549138941,6.84,146.2,146.16,22.5198]
[1719549140231,6.8395,146.21,146.16,22.5198]
[1719549140434,20.0,146.2,146.16,22.5198]
[1719549140743,6.839,146.22,146.16,22.5198]
[1719549140969,26.8395,146.21,146.16,22.5198]
[1719549141746,20.0,146.21,146.16,22.5198]
[1719549141937,20.0,146.21,146.16,29.3614]
[1719549142115,20.0,146.22,146.16,29.3614]
[1719549142323,20.0,146.22,146.16,22.5198]
[1719549142645,26.839,146.22,146.16,29.3615]
[1719549143940,3.52103989,146.26,146.16,22.5198]
[1719549144127,6.838,146.25,146.18,6.8404]
[1719549145131,6.838,146.25,146.19,6.8402]
[1719549148236,6.838,146.25,146.16,22.5198]
[1719549148237,20.0,146.26,146.2,6.8397]
[1719549148737,6.8371,146.26,146.2,6.8397]
[1719549148951,6.8367,146.27,146.21,29.4219]
[1719549149247,20.0,146.26,146.21,29.4219]
[1719549149623,6.8367,146.27,146.21,29.4219]
[1719549151053,6.8363,146.28,146.22,6.839]
[1719549154351,6.8357,146.29,146.23,6.8385]
[1719549156632,22.5857,146.29,146.23,22.5885]
[1719549159061,6.8353,146.3,146.23,22.5885]
[1719549159238,6.8353,146.3,146.23,15.75]
[1719549159435,22.5853,146.3,146.23,15.75]
[1719549159649,27.72574386,146.33,146.17,6.859]
[1719549159650,10.64114386,146.33,146.25,6.5115]
[1719549159829,24.09941041,146.36,146.25,6.5115]
[1719549159830,15.75,146.32,146.25,6.5115]
[1719549160159,15.75,146.32,146.25,22.2615]
[1719549160160,6.8352,146.31,146.25,22.2615]
[1719549160330,6.8354,146.3,146.25,22.2615]
[1719549160536,15.75,146.31,146.25,22.2615]
[1719549161044,6.8347,146.32,146.25,22.2615]
[1719549161243,15.75,146.31,146.25,22.2615]
[1719549161551,6.8347,146.32,146.25,22.2615]
[1719549161931,6.8347,146.32,146.26,15.75]
[1719549162135,22.5847,146.32,146.26,15.75]
[1719549162363,6.8347,146.32,146.26,15.75]
[1719549162770,22.5847,146.32,146.26,15.75]
[1719549162951,6.8347,146.32,146.26,15.75]
[1719549163165,22.5847,146.32,146.26,15.75]
[1719549163673,6.8347,146.32,146.27,15.75]
[1719549164349,15.75,146.34,146.28,15.75]
[1719549164745,15.75,146.35,146.29,32.326]
[1719549165080,6.8325,146.36,146.3,15.75]
[1719549165081,22.5825,146.36,146.3,15.75]
[1719549167276,6.8325,146.36,146.3,15.75]
[1719549167461,3.5088052,146.39,146.31,22.3029]
[1719549167667,22.582,146.37,146.31,22.3029]
[1719549168240,6.8335,146.34,146.31,6.5529]
[1719549168455,15.75,146.35,146.31,6.5529]
[1719549168665,3.5088052,146.38,146.31,6.5529]
[1719549168971,22.5833,146.35,146.31,6.5529]
[1719549170658,15.75,146.33,146.29,16.576]
[1719549170867,22.5838,146.33,146.29,16.576]
[1719549171168,15.75,146.32,146.29,16.576]
[1719549172158,22.5843,146.32,146.29,16.576]
[1719549172365,6.8339,146.33,146.29,16.576]
[1719549172663,6.8335,146.34,146.29,16.576]
[1719549172860,15.75,146.32,146.29,16.576]
[1719549174757,15.75,146.32,146.27,6.0067]
[1719549175772,22.5838,146.33,146.27,6.0067]
[1719549176777,15.75,146.33,146.27,6.0067]
[1719549177567,6.8335,146.34,146.27,6.0067]
[1719549177853,35.75,146.33,146.27,6.0067]
[1719549178560,42.5838,146.33,146.27,6.0067]
[1719549178871,20.0,146.33,146.27,6.0067]
[1719549180278,26.8339,146.33,146.27,6.0067]
[1719549180584,20.0,146.33,146.27,6.0067]
[1719549185962,6.8353,146.3,146.27,6.0067]
[1719549186153,20.0,146.29,146.22,6.3046]
[1719549186366,15.75,146.26,146.22,6.3046]
[1719549186755,15.75,146.3,146.22,6.3046]
[1719549186959,15.75,146.27,146.22,6.3046]
[1719549187269,26.8358,146.29,146.22,6.3046]
[1719549187469,15.75,146.27,146.22,6.3046]
[1719549188353,6.8376,146.25,146.21,15.7902]
[1719549188576,37.0893,146.29,146.21,15.7902]
[1719549188577,6.8385,146.23,146.21,15.7902]
[1719549188765,6.8394,146.21,146.17,16.5162]
[1719549188963,22.5903,146.2,146.17,16.5162]
[1719549189165,15.75,146.2,146.17,16.5162]
[1719549189372,15.75,146.21,146.17,16.5162]
[1719549189869,10.34396697,146.27,146.19,15.75]
[1719549190065,20.0,146.26,146.21,6.8394]
[1719549190363,20.0,146.26,146.22,6.8388]
[1719549190566,20.0,146.26,146.22,22.5888]
[1719549191457,15.75,146.27,146.22,22.5888]
[1719549192078,15.75,146.27,146.22,6.8388]
[1719549192269,6.8358,146.29,146.22,6.8388]
[1719549192471,35.75,146.28,146.22,22.5888]
[1719549193589,20.0,146.28,146.22,22.5888]
[1719549193789,15.75,146.27,146.21,6.3488]
[1719549194086,15.75,146.27,146.21,22.0988]
[1719549194877,6.8371,146.26,146.21,22.0988]
[1719549195065,22.5867,146.27,146.21,22.0988]
[1719549195391,15.75,146.27,146.21,22.0988]
[1719549195687,15.75,146.27,146.21,6.3488]
[1719549195871,15.75,146.27,146.21,22.0988]
[1719549196075,20.0,146.28,146.21,28.938]
[1719549196390,6.8362,146.28,146.22,6.8388]
[1719549196580,6.8362,146.28,146.17,22.868]
[1719549196581,15.75,146.24,146.17,22.868]
[1719549196781,15.75,146.22,146.17,22.868]
[1719549196970,3.50780177,146.27,146.17,22.868]
[1719549197294,27.01560355,146.29,146.18,22.5907]
[1719549197295,22.588,146.24,146.18,22.5907]
[1719549197487,20.0,146.23,146.18,22.5907]
[1719549197699,20.0,146.23,146.19,6.8402]
[1719549198190,20.0,146.23,146.18,6.8408]
[1719549198989,10.34400177,146.28,146.22,6.8386]
[1719549199172,20.0,146.27,146.22,15.75]
[1719549199373,7.12830929,146.31,146.24,16.0504]
[1719549199572,15.75,146.31,146.26,6.837]
[1719549199982,15.75,146.31,146.25,22.5875]
[1719549201078,15.75,146.32,146.26,22.587]
[1719549201282,15.75,146.33,146.27,15.75]
[1719549201594,20.0,146.32,146.27,15.75]
[1719549201892,35.75,146.32,146.24,16.0504]
[1719549202088,15.75,146.31,146.25,15.75]
[1719549202387,15.75,146.31,146.24,16.0504]
[1719549202593,20.0,146.3,146.24,16.0504]
[1719549202777,42.5853,146.3,146.24,16.0504]
[1719549203094,42.5853,146.3,146.24,31.8004]
[1719549203289,26.8353,146.3,146.24,31.8004]
[1719549203590,20.0,146.3,146.24,16.0504]
[1719549203778,6.8362,146.28,146.24,16.0504]
[1719549203977,22.5862,146.28,146.24,16.0504]
[1719549204864,15.75,146.28,146.24,16.0504]
[1719549205774,22.5858,146.29,146.24,16.0504]
[1719549205994,20.0,146.28,146.24,16.0504]
[1719549206594,20.0,146.28,146.22,15.75]
[1719549206809,22.587,146.27,146.2,22.2245]
[1719549207104,20.0,146.26,146.21,15.75]
[1719549207299,35.75,146.26,146.2,22.2245]
[1719549207479,35.75,146.26,146.2,37.9745]
[1719549207791,20.0,146.26,146.21,15.75]
[1719549207998,6.8377,146.25,146.21,15.75]
[1719549208195,20.0,146.26,146.21,15.75]
[1719549208371,26.8373,146.26,146.2,22.2245]
[1719549208570,26.8373,146.26,146.21,15.75]
[1719549208906,35.75,146.26,146.2,44.8141]
[1719549209072,20.0,146.26,146.21,22.5894]
[1719549209600,35.75,146.26,146.21,6.8394]
[1719549210482,20.0,146.26,146.22,6.8389]
[1719549210688,20.0,146.27,146.23,6.8385]
[1719549212308,20.0,146.27,146.22,15.75]
[1719549212515,20.0,146.28,146.22,15.75]
[1719549215210,35.75,146.3,146.24,15.75]
[1719549215511,42.5854,146.3,146.24,15.75]
[1719549215708,42.5854,146.3,146.2,22.2245]
[1719549215709,20.0,146.3,146.25,15.75]
[1719549215913,20.0,146.3,146.26,15.75]
[1719549216418,20.0,146.32,146.26,15.75]
[1719549216915,20.0,146.32,146.27,15.75]
[1719549217207,20.0,146.32,146.26,15.75]
[1719549217388,20.0,146.32,146.27,15.75]
[1719549217601,22.5839,146.33,146.27,15.75]
[1719549217800,20.0,146.32,146.27,15.75]
[1719549218192,20.0,146.32,146.23,63.0]
[1719549218709,20.0,146.32,146.24,15.4914]
[1719549218913,20.0,146.33,146.24,15.4914]
[1719549219089,26.8339,146.33,146.24,15.4914]
[1719549221613,3.51474351,146.34,146.25,6.5732]
[1719549221797,6.8333,146.35,146.3,15.75]
[1719549222000,6.8333,146.35,146.29,15.75]
[1719549222001,6.8334,146.34,146.29,15.75]
[1719549222208,20.0,146.35,146.29,15.75]
[1719549222428,20.0,146.35,146.3,15.75]
[1719549222429,6.8331,146.35,146.3,15.75]
[1719549222606,20.0,146.34,146.3,15.75]
[1719549223112,20.0,146.34,146.25,6.5732]
[1719549223288,15.75,146.35,146.29,15.75]
[1719549223484,15.75,146.35,146.25,6.5732]
[1719549223485,22.5835,146.34,146.25,6.5732]
[1719549223689,22.5835,146.34,146.28,15.75]
[1719549223929,6.8335,146.34,146.29,15.75]
[1719549225193,15.75,146.35,146.29,15.75]
[1719549225513,20.0,146.34,146.3,15.75]
[1719549226715,20.0,146.35,146.3,15.75]
[1719549227209,26.8333,146.35,146.3,15.75]
[1719549227788,20.0,146.35,146.3,15.75]
[1719549227994,6.8329,146.35,146.3,15.75]
[1719549228630,20.0,146.34,146.3,15.75]
[1719549229001,22.5824,146.36,146.3,15.75]
[1719549229002,20.0,146.35,146.3,15.75]
[1719549229322,20.0,146.35,146.26,6.859]
[1719549229323,20.0,146.35,146.31,15.75]
[1719549229524,20.0,146.36,146.31,15.75]
[1719549229830,20.0,146.36,146.25,6.5732]
[1719549229831,26.8324,146.36,146.25,6.5732]
[1719549230124,26.8324,146.36,146.31,15.75]
[1719549230506,20.0,146.36,146.31,15.75]
[1719549231104,26.8325,146.36,146.31,15.75]
[1719549231617,26.8325,146.36,146.32,15.75]
[1719549231824,20.0,146.36,146.32,15.75]
[1719549233510,26.8326,146.36,146.32,15.75]
[1719549233711,20.0,146.36,146.32,15.75]
[1719549233920,6.832,146.37,146.32,15.75]
[1719549237316,15.75,146.38,146.32,15.75]
[1719549237621,6.8319,146.38,146.3,79.0535]
[1719549237824,6.8311,146.39,146.3,79.0535]
[1719549238554,6.8311,146.39,146.31,6.859]
[1719549239103,6.8307,146.4,146.31,6.859]
[1719549239301,26.831,146.39,146.3,79.0535]
[1719549239518,26.831,146.39,146.31,6.859]
[1719549239922,20.0,146.39,146.31,13.3613]
[1719549240130,26.8311,146.39,146.31,13.3613]
[1719549240433,20.0,146.39,146.31,13.3613]
[1719549241513,20.0,146.4,146.31,13.3613]
[1719549242348,20.0,146.41,146.31,13.3613]
[1719549242512,35.75,146.41,146.31,13.3613]
[1719549242714,20.0,146.41,146.31,13.3613]
[1719549242915,26.8302,146.41,146.35,15.75]
[1719549243140,6.8306,146.4,146.36,15.75]
[1719549243435,6.8306,146.4,146.35,15.75]
[1719549243822,26.8302,146.41,146.35,15.75]
[1719549244323,26.8302,146.41,146.36,15.75]
[1719549244529,20.0,146.41,146.36,15.75]
[1719549245810,26.8301,146.41,146.36,15.75]
[1719549246076,20.0,146.41,146.36,15.75]
[1719549246212,7.1273896,146.42,146.37,15.75]
[1719549246540,6.8293,146.43,146.38,15.75]
[1719549246920,0.8308008,146.44,146.38,15.75]
[1719549247111,7.6595008,146.44,146.39,15.75]
[1719549248416,0.8308008,146.44,146.39,15.75]
[1719549249625,0.8308008,146.44,146.37,16.0523]
[1719549249840,0.8308008,146.44,146.39,15.75]
[1719549252854,0.8308008,146.44,146.37,16.0523]
[1719549253053,23.4099008,146.44,146.38,15.75]
[1719549253738,23.4099008,146.44,146.37,16.0523]
[1719549253739,15.75,146.43,146.37,31.8023]
[1719549253927,0.8308008,146.44,146.33,15.2821]
[1719549254131,15.75,146.41,146.35,15.75]
[1719549254747,15.75,146.42,146.36,15.75]
[1719549255267,6.8295,146.43,146.37,15.75]
[1719549255470,20.0,146.42,146.33,15.2821]
[1719549255635,20.0,146.42,146.37,15.75]
[1719549255840,35.75,146.42,146.33,15.2821]
[1719549256041,15.75,146.4,146.34,15.75]
[1719549256649,22.5804,146.41,146.35,15.75]
[1719549256941,6.8306,146.4,146.33,15.2821]
[1719549257159,6.8306,146.4,146.35,15.75]
[1719549257338,22.5802,146.41,146.35,15.75]
[1719549257547,15.25,146.41,146.35,15.75]
[1719549258537,14.75,146.41,146.35,15.75]
[1719549258938,20.0,146.42,146.37,15.75]
[1719549259138,14.79553215,146.44,146.37,15.75]
[1719549259139,35.75,146.43,146.37,15.75]
[1719549259344,35.75,146.43,146.33,15.2821]
[1719549259345,20.0,146.43,146.38,15.75]
[1719549259762,20.0,146.43,146.33,15.2821]
[1719549259967,15.75,146.41,146.35,15.75]
[1719549262541,15.75,146.41,146.35,15.75]
[1719549263038,35.75,146.43,146.37,15.75]
[1719549263554,20.0,146.43,146.37,15.75]
[1719549263738,35.75,146.43,146.33,15.2821]
[1719549263938,20.0,146.43,146.37,15.75]
[1719549264269,20.0,146.43,146.38,15.75]
[1719549264571,0.8308008,146.44,146.39,15.75]
[1719549265469,23.4096008,146.44,146.38,15.75]
[1719549265667,20.0,146.43,146.38,15.75]
[1719549266068,20.0,146.43,146.33,15.2821]
[1719549266573,20.0,146.43,146.38,15.75]
[1719549268367,36.5808008,146.44,146.38,15.75]
[1719549268598,27.6595008,146.44,146.38,15.75]
[1719549268759,6.8293,146.43,146.38,15.75]
[1719549269075,36.5808008,146.44,146.38,15.75]
[1719549269264,6.8292,146.43,146.38,15.75]
[1719549269645,43.4096008,146.44,146.38,15.75]
[1719549270472,36.5808008,146.44,146.38,15.75]
[1719549270771,43.4095008,146.44,146.38,15.75]
[1719549270985,20.8308008,146.44,146.38,15.75]
[1719549271267,36.5808008,146.44,146.38,15.75]
[1719549271668,43.4098008,146.44,146.38,15.75]
[1719549272583,15.75,146.43,146.37,15.75]
[1719549272889,15.75,146.4,146.34,15.75]
[1719549273060,15.75,146.4,146.33,31.0321]
[1719549273451,6.8304,146.41,146.34,15.75]
[1719549273649,35.75,146.4,146.34,15.75]
[1719549273886,20.0,146.39,146.35,15.75]
[1719549274674,20.0,146.4,146.35,15.75]
[1719549275062,20.0,146.41,146.35,15.75]
[1719549276061,20.0,146.41,146.36,15.75]
[1719549280694,20.0,146.41,146.33,15.2821]
[1719549280905,20.0,146.41,146.36,15.75]
[1719549283093,20.0,146.41,146.37,15.75]
[1719549283291,20.0,146.42,146.37,15.75]
[1719549284476,26.8296,146.42,146.37,15.75]
[1719549286379,6.8301,146.41,146.37,15.75]
[1719549286589,20.0,146.4,146.37,15.75]
[1719549286989,20.0,146.4,146.33,22.1411]
[1719549287294,20.0,146.41,146.37,15.75]
[1719549287666,26.8301,146.41,146.37,15.75]
[1719549289068,20.0,146.41,146.37,15.75]
[1719549289371,3.51480178,146.43,146.37,15.75]
[1719549289570,12.32804301,146.42,146.37,15.75]
[1719549289788,26.8292,146.43,146.33,15.2821]
[1719549289993,12.32793252,146.42,146.38,15.75]
[1719549290179,26.8292,146.43,146.38,15.75]
[1719549290493,12.32800157,146.42,146.38,15.75]
[1719549290694,30.34400178,146.43,146.38,15.75]
[1719549290995,12.32800157,146.42,146.38,15.75]
[1719549291175,30.34400178,146.43,146.38,15.75]
[1719549291476,12.32785709,146.42,146.38,15.75]
[1719549291694,12.32785709,146.41,146.38,15.75]
[1719549291872,19.15745709,146.42,146.38,15.75]